bitfinex-derivatives/quotes_BTCF0:USTF0_20251118
["timestamp","ask_amount","ask_price","bid_price","bid_amount"]
[1763457591580,0.1064865,91524.0,91523.0,0.04448]
[1763457591885,0.02232,91524.0,91523.0,0.04448]
[1763457592384,0.02432,91524.0,91523.0,0.04448]
[1763457593478,0.02332,91524.0,91523.0,0.04448]
[1763457593879,0.02132,91524.0,91523.0,0.04448]
[1763457594078,0.02232,91524.0,91523.0,0.04448]
[1763457594476,0.02132,91524.0,91523.0,0.04448]
[1763457594884,0.02232,91524.0,91523.0,0.04448]
[1763457595286,0.002,91524.0,91523.0,0.04448]
[1763457595988,0.01216,91524.0,91523.0,0.04448]
[1763457598390,0.02032,91515.0,91514.0,0.04577395]
[1763457599887,0.02132,91515.0,91514.0,0.04577395]
[1763457600187,0.02232,91515.0,91514.0,0.04577395]
[1763457603893,0.02232,91515.0,91514.0,0.03498395]
[1763457604292,0.04158,91505.0,91504.0,0.05922]
[1763457604696,0.31475308,91514.0,91513.0,0.04561]
[1763457605691,0.04158,91514.0,91513.0,0.04561]
[1763457606893,0.04258,91514.0,91513.0,0.04561]
[1763457607197,0.04358,91514.0,91513.0,0.04561]
[1763457609094,0.02279,91514.0,91513.0,0.04561]
[1763457609303,0.002,91514.0,91513.0,0.04561]
[1763457610085,0.26464,91520.0,91519.0,0.04561]
[1763457610286,0.00016395,91523.0,91522.0,0.04561]
[1763457610287,3.95e-06,91523.0,91522.0,0.04561]
[1763457610797,0.01104343,91533.0,91525.0,0.01387]
[1763457610994,0.2646,91543.0,91540.0,0.04561]
[1763457611198,0.05578326,91541.0,91540.0,0.04780803]
[1763457612790,0.05778326,91541.0,91540.0,0.04780803]
[1763457613192,0.05778326,91541.0,91531.0,0.00016395]
[1763457613193,0.04473,91532.0,91531.0,0.00016395]
[1763457613696,0.30933,91532.0,91531.0,0.00016395]
[1763457614199,0.04473,91526.0,91525.0,0.05948]
[1763457616197,0.04573,91526.0,91525.0,0.05948]
[1763457616699,0.04673,91526.0,91525.0,0.05948]
[1763457617901,0.04573,91526.0,91525.0,0.05948]
[1763457618103,0.04673,91526.0,91525.0,0.05948]
[1763457618703,0.04573,91526.0,91525.0,0.05948]
[1763457618903,0.04673,91526.0,91525.0,0.05948]
[1763457619802,0.04737,91526.0,91525.0,0.05948]
[1763457620195,0.04714,91526.0,91525.0,0.05948]
[1763457624691,0.04514,91521.0,91520.0,0.00219803]
[1763457624896,0.04514,91517.0,91516.0,0.04220395]
[1763457625101,0.3097,91517.0,91516.0,0.04220395]
[1763457628499,0.3117,91517.0,91516.0,0.04220395]
[1763457628700,0.04523,91498.0,91486.0,0.00027327]
[1763457628904,0.02228,91487.0,91486.0,0.04271327]
[1763457629503,0.04523,91487.0,91486.0,0.04271327]
[1763457630208,0.04523,91487.0,91464.0,0.01345]
[1763457630209,0.04523,91461.0,91460.0,0.07165587]
[1763457630413,0.30979,91470.0,91469.0,0.04244]
[1763457630907,0.30879,91470.0,91469.0,0.04244]
[1763457631105,0.02128,91457.0,91456.0,0.04244]
[1763457631808,0.01828,91457.0,91456.0,0.04244]
[1763457632503,0.01828,91457.0,91456.0,0.04644]
[1763457633906,0.04123,91457.0,91456.0,0.003]
[1763457634207,0.04523,91448.0,91447.0,0.00016395]
[1763457634409,0.30983,91448.0,91447.0,0.00016395]
[1763457634607,0.47419091,91448.0,91447.0,0.00016395]
[1763457634909,0.47419091,91448.0,91446.0,0.00027339]
[1763457634910,0.04523,91447.0,91446.0,1e-08]
[1763457635110,0.04523,91447.0,91413.0,0.01345]
[1763457635310,0.28660308,91440.0,91420.0,0.00219803]
[1763457635517,0.28660308,91440.0,91413.0,0.01345]
[1763457635518,0.04523,91431.0,91430.0,0.04463803]
[1763457636006,0.05866,91422.0,91421.0,0.00016405]
[1763457637510,0.05766,91422.0,91421.0,0.00016405]
[1763457637707,0.04523,91420.0,91404.0,0.01345]
[1763457638013,0.30891,91419.0,91418.0,0.04244]
[1763457638212,0.30791,91419.0,91418.0,0.04244]
[1763457638507,0.30791,91419.0,91418.0,0.02113]
[1763457638911,0.04523,91411.0,91410.0,0.04463803]
[1763457639103,0.04532012,91411.0,91410.0,0.04463803]
[1763457639811,0.04532012,91411.0,91409.0,0.00010953]
[1763457639812,0.04523,91410.0,91409.0,0.00010953]
[1763457640013,0.04523,91405.0,91386.0,0.01345]
[1763457640198,0.04523,91391.0,91390.0,0.04244]
[1763457640402,0.04523,91381.0,91380.0,0.04463803]
[1763457640601,0.04533655,91381.0,91380.0,0.04463803]
[1763457641207,0.02228,91371.0,91370.0,0.05589]
[1763457641410,0.04533655,91371.0,91370.0,0.00219803]
[1763457641599,0.04523,91367.0,91350.0,0.01345]
[1763457641804,0.02228,91361.0,91360.0,0.04463803]
[1763457642106,0.04430672,91361.0,91360.0,0.04463803]
[1763457642314,0.04423,91355.0,91330.0,0.01345]
[1763457642498,0.26291177,91350.0,91349.0,0.02113]
[1763457642819,0.00010655,91350.0,91349.0,0.04244]
[1763457643005,7e-07,91352.0,91351.0,0.04244]
[1763457643200,0.12816,91365.0,91364.0,0.04244]
[1763457644498,0.15044,91365.0,91364.0,0.04244]
[1763457644706,0.12816,91365.0,91364.0,0.04244]
[1763457645206,0.04539415,91374.0,91373.0,0.02113]
[1763457645401,0.31047415,91374.0,91373.0,0.02113]
[1763457645601,0.31047415,91374.0,91360.0,0.00219803]
[1763457645803,0.21768177,91370.0,91360.0,0.00219803]
[1763457646104,0.04523,91361.0,91360.0,0.04463803]
[1763457646413,0.04523,91356.0,91355.0,0.04260415]
[1763457646598,0.04523,91366.0,91365.0,0.04244]
[1763457647309,0.04523,91356.0,91355.0,0.00016415]
[1763457647506,0.04523,91356.0,91355.0,0.04260415]
[1763457648110,0.04523,91356.0,91355.0,0.00016415]
[1763457648311,0.04523,91356.0,91355.0,0.04260415]
[1763457648613,1.5,91364.0,91363.0,0.04244]
[1763457648810,0.00016415,91374.0,91363.0,0.04244]
[1763457649009,0.04539415,91374.0,91373.0,0.04244]
[1763457649209,1.81051415,91374.0,91373.0,0.04244]
[1763457649809,0.00016415,91374.0,91373.0,0.04244]
[1763457650207,0.00116415,91374.0,91373.0,0.04244]
[1763457650903,0.00216415,91374.0,91373.0,0.04244]
[1763457651603,0.02444415,91374.0,91373.0,0.04244]
[1763457651807,0.04739415,91374.0,91373.0,0.04244]
[1763457652019,0.00216415,91374.0,91373.0,0.04244]
[1763457652210,0.21768177,91440.0,91373.0,0.04244]
[1763457652211,0.21768177,91400.0,91373.0,0.04244]
[1763457652513,0.21768177,91400.0,91394.0,0.04244]
[1763457652514,0.02228,91395.0,91394.0,0.04244]
[1763457652819,0.04523,91395.0,91394.0,0.04244]
[1763457653617,0.04523,91395.0,91394.0,0.02113]
[1763457654121,0.04723,91395.0,91394.0,0.02113]
[1763457654309,0.04823,91395.0,91394.0,0.02113]
[1763457654513,0.003,91395.0,91394.0,0.04244]
[1763457654726,0.00016415,91404.0,91403.0,0.04244]
[1763457656011,0.00216415,91404.0,91403.0,0.04244]
[1763457656422,0.00416415,91404.0,91403.0,0.04244]
[1763457656818,0.01088737,91424.0,91403.0,0.04244]
[1763457657021,0.05877,91421.0,91420.0,0.00219803]
[1763457657825,0.05877,91421.0,91411.0,0.00016415]
[1763457658125,0.21768177,91420.0,91411.0,0.00016415]
[1763457658623,0.04617,91412.0,91411.0,0.00016415]
[1763457660218,0.04717,91412.0,91411.0,0.00016415]
[1763457660415,0.04817,91412.0,91411.0,0.00016415]
[1763457661022,0.04817,91412.0,91388.0,0.01345]
[1763457661224,0.04617,91391.0,91370.0,0.02913312]
[1763457661529,0.0126,91399.0,91355.0,0.01342]
[1763457661530,0.04617,91370.0,91369.0,0.04268]
[1763457661725,0.04617,91380.0,91379.0,0.04268]
[1763457661927,0.18821,91380.0,91379.0,0.04268]
[1763457662529,0.04617,91380.0,91379.0,0.04268]
[1763457665331,0.2092,91383.0,91370.0,0.04284415]
[1763457665534,0.2092,91383.0,91370.0,0.04504218]
[1763457666137,0.21768177,91380.0,91370.0,0.04504218]
[1763457666639,0.04617,91371.0,91370.0,0.00016415]
[1763457668341,0.04617,91357.0,91340.0,0.02928957]
[1763457668540,0.04617,91357.0,91338.0,0.02928957]
[1763457668739,0.04617,91357.0,91337.0,0.02928957]
[1763457668937,0.04617,91357.0,91333.0,0.01342]
[1763457669441,0.04617,91357.0,91329.0,0.02928957]
[1763457669442,0.04617,91348.0,91347.0,0.00016415]
[1763457670040,0.04617,91331.0,91330.0,0.04487803]
[1763457670242,0.26385177,91340.0,91339.0,0.02154]
[1763457670438,0.04626468,91340.0,91339.0,0.02154]
[1763457671042,0.04626468,91340.0,91326.0,0.00027375]
[1763457671247,0.26394645,91340.0,91330.0,0.00219803]
[1763457671749,0.02308,91331.0,91330.0,0.04487803]
[1763457672046,0.02317468,91331.0,91330.0,0.04487803]
[1763457672631,9.468e-05,91331.0,91330.0,0.04487803]
[1763457674747,0.00016415,91349.0,91348.0,0.04268]
[1763457675045,0.04617,91374.0,91373.0,0.04268]
[1763457675351,0.01071806,91376.0,91375.0,0.04268]
[1763457675544,0.03379806,91376.0,91375.0,0.04268]
[1763457675847,0.02308,91376.0,91375.0,0.04268]
[1763457676242,0.0342456,91382.0,91381.0,0.04268]
[1763457676448,0.04617,91382.0,91381.0,0.04268]
[1763457677049,0.04617,91381.0,91380.0,0.00219803]
[1763457678746,0.04817,91381.0,91380.0,0.00219803]
[1763457678942,0.0126,91380.0,91366.0,0.00016415]
[1763457679248,0.02308,91371.0,91370.0,0.04487803]
[1763457679639,0.04617,91371.0,91370.0,0.00219803]
[1763457679847,0.04442,91367.0,91366.0,0.00016415]
[1763457680247,0.30966,91367.0,91340.0,0.01333]
[1763457680442,0.21768177,91360.0,91341.0,0.02878483]
[1763457680642,0.04442,91351.0,91350.0,0.04712803]
[1763457681152,0.02179,91351.0,91350.0,0.04712803]
[1763457681451,0.21784592,91360.0,91350.0,0.04712803]
[1763457684256,0.02179,91351.0,91350.0,0.04712803]
[1763457684651,0.04458415,91360.0,91359.0,0.04493]
[1763457687047,0.05812415,91360.0,91359.0,0.04493]
[1763457687350,0.05812415,91360.0,91340.0,0.01333]
[1763457687555,0.23138592,91360.0,91350.0,0.04527803]
[1763457687749,0.23138592,91360.0,91350.0,0.05874803]
[1763457687945,0.25366592,91360.0,91359.0,0.02142]
[1763457688154,0.05765415,91360.0,91359.0,0.02142]
[1763457689354,0.04395,91351.0,91350.0,0.04308]
[1763457689561,0.04395,91351.0,91350.0,0.04527803]
[1763457692349,0.02228,91351.0,91350.0,0.05216803]
[1763457692549,0.23238592,91360.0,91350.0,0.05216803]
[1763457692550,0.00116415,91360.0,91359.0,0.05655]
[1763457693350,0.02344415,91360.0,91359.0,0.05655]
[1763457693549,0.02344415,91360.0,91359.0,0.04308]
[1763457693550,0.04511415,91360.0,91359.0,0.04308]
[1763457695457,0.04395,91351.0,91350.0,0.04308]
[1763457695650,0.04395,91351.0,91350.0,0.04527803]
[1763457696354,0.05749,91341.0,91340.0,0.02142]
[1763457696658,0.05749,91341.0,91340.0,0.00219803]
[1763457697051,0.05749,91341.0,91340.0,0.02361803]
[1763457697252,0.05749,91341.0,91340.0,0.00219803]
[1763457697762,0.04395,91327.0,91326.0,0.04335375]
[1763457698062,0.04395,91327.0,91326.0,0.07208913]
[1763457698361,0.04395,91327.0,91326.0,0.04335375]
[1763457698766,0.04395,91327.0,91326.0,0.02169375]
[1763457698964,0.04395,91327.0,91326.0,0.00027375]
[1763457699560,0.04395,91327.0,91326.0,0.04335375]
[1763457700062,0.04395,91327.0,91326.0,0.00027375]
[1763457701559,0.04395,91327.0,91326.0,0.04335375]
[1763457704353,0.04411425,91336.0,91335.0,0.04308]
[1763457705563,0.04411425,91336.0,91335.0,0.02142]
[1763457705761,0.04395,91331.0,91330.0,0.02361803]
[1763457705961,0.04395,91331.0,91330.0,0.04527803]
[1763457706363,0.04295,91331.0,91330.0,0.04527803]
[1763457708971,0.04295,91331.0,91330.0,0.00219803]
[1763457709863,0.04295,91331.0,91330.0,0.00319803]
[1763457710469,0.04295,91331.0,91330.0,0.001]
[1763457710971,0.04395,91327.0,91326.0,0.00127375]
[1763457712468,0.04295,91327.0,91301.0,0.02928957]
[1763457712666,0.04395,91311.0,91310.0,0.04527803]
[1763457716870,0.04395,91311.0,91310.0,0.04308]
[1763457717177,0.02201,91297.0,91296.0,0.05785]
[1763457717374,0.05721,91304.0,91303.0,0.04501]
[1763457718065,0.04452,91304.0,91303.0,0.04501]
[1763457718662,0.00016425,91306.0,91300.0,0.00219803]
[1763457718869,0.00016425,91306.0,91305.0,0.04501]
[1763457719068,0.02217425,91306.0,91305.0,0.04501]
[1763457719277,0.04468425,91306.0,91305.0,0.04501]
[1763457720576,0.04452,91301.0,91300.0,0.00219803]
[1763457720871,0.04452,91301.0,91300.0,0.02520803]
[1763457721072,0.04452,91301.0,91300.0,0.04720803]
[1763457721383,0.04452,91289.0,91288.0,0.04501]
[1763457726173,0.04452,91296.0,91295.0,0.04501]
[1763457726583,0.04452,91291.0,91290.0,0.04720803]
[1763457728283,0.04452,91291.0,91274.0,0.00014019]
[1763457728477,0.04452,91287.0,91274.0,0.00014019]
[1763457728980,0.04452,91275.0,91274.0,0.02301]
[1763457729881,0.04452,91265.0,91264.0,0.04501]
[1763457730181,0.04463111,91265.0,91264.0,0.04501]
[1763457731071,0.04452,91261.0,91260.0,0.04720803]
[1763457731871,0.04452,91249.0,91248.0,0.04501]
[1763457732180,0.0446077,91249.0,91248.0,0.04501]
[1763457732878,8.77e-05,91249.0,91248.0,0.04501]
[1763457733274,8.77e-05,91249.0,91248.0,0.04601]
[1763457734174,8.77e-05,91249.0,91248.0,0.04501]
[1763457737183,8.77e-05,91249.0,91246.0,0.00027399]
[1763457737184,0.04452,91247.0,91246.0,0.04528399]
[1763457738370,0.04452,91247.0,91246.0,0.00027399]
[1763457738784,0.04452,91247.0,91246.0,0.02328399]
[1763457740184,0.04452,91247.0,91246.0,0.00027399]
[1763457740390,0.04452,91247.0,91246.0,0.02348399]
[1763457740779,0.04452,91247.0,91246.0,0.04570399]
[1763457744087,8.77e-05,91249.0,91248.0,0.05816]
[1763457744590,0.0437477,91249.0,91248.0,0.04543]
[1763457747084,0.0437477,91249.0,91246.0,0.00027399]
[1763457747085,0.04289,91247.0,91246.0,0.00027399]
[1763457748385,0.04289,91247.0,91224.0,0.01284]
[1763457748386,0.04389,91247.0,91224.0,0.01284]
[1763457748889,0.28724425,91240.0,91224.0,0.01284]
[1763457749087,0.00011329,91239.0,91224.0,0.01284]
[1763457749287,0.02144,91225.0,91224.0,0.05726]
[1763457749592,0.02154565,91225.0,91224.0,0.05726]
[1763457750385,0.04266565,91225.0,91224.0,0.04442]
[1763457750988,0.04256,91221.0,91220.0,0.00219803]
[1763457751387,0.04256,91221.0,91220.0,0.02413803]
[1763457751888,0.04256,91221.0,91220.0,0.04661803]
[1763457752696,0.04256,91221.0,91220.0,0.02194]
[1763457753085,0.04256,91213.0,91212.0,0.04454]
[1763457753297,0.04266388,91213.0,91212.0,0.04454]
[1763457754388,0.04266388,91213.0,91212.0,0.00112]
[1763457756495,0.04256,91207.0,91192.0,0.01363]
[1763457756800,0.04256,91207.0,91184.0,0.05269898]
[1763457757000,0.04256,91207.0,91190.0,0.00219803]
[1763457757594,0.00012699,91206.0,91190.0,0.00219803]
[1763457757799,0.04256,91191.0,91190.0,0.04661803]
[1763457758085,0.00011475,91191.0,91190.0,0.04661803]
[1763457758290,0.03432442,91207.0,91206.0,0.04442]
[1763457758494,0.04256,91207.0,91206.0,0.04542]
[1763457759304,0.04268642,91207.0,91206.0,0.04442]
[1763457759699,0.04439627,91207.0,91206.0,0.04442]
[1763457760200,0.05694748,91207.0,91206.0,0.04442]
[1763457760406,0.00183627,91207.0,91206.0,0.05248]
[1763457761092,0.02327627,91207.0,91206.0,0.05248]
[1763457761695,0.00183627,91207.0,91206.0,0.05248]
[1763457761903,0.04439627,91207.0,91206.0,0.04442]
[1763457762298,0.04439627,91207.0,91206.0,0.04072]
[1763457762498,0.04439627,91207.0,91192.0,0.01363]
[1763457762706,0.04256,91201.0,91200.0,0.04490818]
[1763457764100,0.00012642,91207.0,91200.0,0.04926818]
[1763457764289,0.04268642,91207.0,91206.0,0.04442]
[1763457765497,0.04368642,91207.0,91206.0,0.04442]
[1763457766204,0.04368642,91207.0,91206.0,0.02194]
[1763457766401,0.04368642,91207.0,91192.0,0.01363]
[1763457766607,0.04256,91201.0,91200.0,0.04544282]
[1763457766821,0.04268311,91201.0,91200.0,0.04544282]
[1763457767405,0.01497788,91200.0,91184.0,0.01363]
[1763457767612,0.04256,91191.0,91190.0,0.04544282]
[1763457767805,0.01497788,91200.0,91190.0,0.04544282]
[1763457767806,0.05563,91200.0,91199.0,0.04442]
[1763457768007,0.05753788,91200.0,91199.0,0.04442]
[1763457768601,0.05753788,91200.0,91190.0,0.00102282]
[1763457768602,0.04256,91191.0,91190.0,0.04544282]
[1763457768804,0.04270125,91191.0,91190.0,0.04442]
[1763457769508,0.04270125,91191.0,91190.0,0.04544282]
[1763457769910,0.00014125,91191.0,91190.0,0.04544282]
[1763457772310,0.00014125,91191.0,91190.0,0.00102282]
[1763457772311,0.04270125,91191.0,91190.0,0.00102282]
[1763457772717,0.04270125,91191.0,91190.0,0.04544282]
[1763457774616,0.00014125,91191.0,91190.0,0.04544282]
[1763457775217,0.02158125,91191.0,91190.0,0.04544282]
[1763457776412,0.04270125,91191.0,91190.0,0.04544282]
[1763457777911,0.04270125,91191.0,91190.0,0.02296282]
[1763457778513,0.04270125,91191.0,91190.0,0.00102282]
[1763457779818,0.02239,91178.0,91177.0,0.08542898]
[1763457780018,0.04557102,91178.0,91177.0,0.04636]
[1763457780823,0.04557102,91178.0,91169.0,0.03906898]
[1763457780824,0.04544,91170.0,91169.0,0.04636]
[1763457781013,0.00104681,91170.0,91168.0,0.02316]
[1763457781212,0.04544,91169.0,91168.0,0.02316]
[1763457781413,0.04444,91169.0,91168.0,0.04636]
[1763457781825,0.04544,91161.0,91160.0,0.08542898]
[1763457782015,0.01392893,91170.0,91160.0,0.08745179]
[1763457782219,0.06027681,91170.0,91169.0,0.04736]
[1763457782826,0.06027681,91170.0,91169.0,0.04636]
[1763457783222,0.06027681,91170.0,91168.0,0.003]
[1763457783431,0.04544,91169.0,91168.0,0.003]
[1763457783719,0.04544,91161.0,91160.0,0.04838281]
[1763457783921,0.04555679,91161.0,91160.0,0.04938281]
[1763457784422,0.04455679,91161.0,91160.0,0.04938281]
[1763457784628,0.04355679,91161.0,91160.0,0.04838281]
[1763457785329,0.04355679,91161.0,91160.0,0.05038281]
[1763457785533,0.04355679,91161.0,91160.0,0.002]
[1763457785826,0.04344,91145.0,91144.0,0.06011]
[1763457786028,0.04357746,91145.0,91144.0,0.06011]
[1763457786222,0.04357746,91145.0,91144.0,0.04636]
[1763457786625,0.04257746,91145.0,91144.0,0.04636]
[1763457786831,0.04544,91141.0,91140.0,0.02518281]
[1763457787029,0.04544,91138.0,91137.0,0.00012763]
[1763457787333,0.04544,91138.0,91137.0,0.04648763]
[1763457787334,0.04551775,91138.0,91137.0,0.04648763]
[1763457787536,0.04451775,91138.0,91137.0,0.04648763]
[1763457788236,7.775e-05,91138.0,91137.0,0.04648763]
[1763457788640,0.04560453,91154.0,91153.0,0.04636]
[1763457788831,0.02255453,91154.0,91153.0,0.04636]
[1763457789027,0.00016453,91154.0,91153.0,0.04636]
[1763457789746,0.00023222,91154.0,91153.0,0.04636]
[1763457790636,0.02262222,91154.0,91153.0,0.04636]
[1763457790943,0.00023222,91154.0,91153.0,0.04636]
[1763457791339,0.04567222,91154.0,91153.0,0.04636]
[1763457792246,0.04567222,91154.0,91153.0,0.02316]
[1763457792451,0.04544,91151.0,91150.0,0.02518281]
[1763457792640,0.04544,91151.0,91150.0,0.04838281]
[1763457794939,0.02262222,91154.0,91153.0,0.04636]
[1763457795141,0.00023222,91154.0,91153.0,0.04636]
[1763457797256,0.00123222,91154.0,91153.0,0.04636]
[1763457798249,0.08476537,91178.0,91177.0,0.04636]
[1763457798449,0.04544,91178.0,91177.0,0.02316]
[1763457798652,0.02239,91162.0,91161.0,0.03691]
[1763457798856,0.02239,91162.0,91161.0,0.06011]
[1763457799155,0.04560453,91171.0,91170.0,0.04636]
[1763457799356,0.04560453,91171.0,91170.0,0.04838281]
[1763457801056,0.04660453,91171.0,91170.0,0.02518281]
[1763457801458,0.04760453,91171.0,91170.0,0.04660281]
[1763457802149,0.04760453,91171.0,91170.0,0.04458]
[1763457804950,0.04760453,91171.0,91170.0,0.02316]
[1763457805159,0.00090788,91170.0,91152.0,0.01391453]
[1763457805360,0.26379355,91170.0,91169.0,0.04317]
[1763457805556,0.04517788,91170.0,91169.0,0.04317]
[1763457806753,0.04617788,91170.0,91169.0,0.04317]
[1763457807156,0.02264,91161.0,91160.0,0.04655]
[1763457807461,0.04572,91161.0,91160.0,0.04857281]
[1763457807651,0.04572,91153.0,91152.0,0.00016453]
[1763457808459,0.04572,91153.0,91152.0,0.02349453]
[1763457809048,0.04572,91153.0,91152.0,0.04671453]
[1763457809250,0.03932537,91158.0,91157.0,0.04655]
[1763457809457,0.03932537,91158.0,91152.0,0.01303453]
[1763457809458,0.04023325,91160.0,91159.0,0.04655]
[1763457809759,0.00090788,91160.0,91159.0,0.04655]
[1763457810453,0.00190788,91160.0,91159.0,0.04655]
[1763457811561,0.04762788,91160.0,91159.0,0.04655]
[1763457812361,0.00190788,91160.0,91159.0,0.04655]
[1763457816965,0.00190788,91160.0,91154.0,0.02951611]
[1763457816966,0.01553788,91160.0,91154.0,0.04655]
[1763457817161,0.04572,91155.0,91154.0,0.04655]
[1763457818669,0.04672,91160.0,91159.0,0.04655]
[1763457818861,0.00190788,91160.0,91159.0,0.04655]
[1763457819666,0.02398788,91160.0,91159.0,0.04655]
[1763457820362,0.00190788,91160.0,91159.0,0.04655]
[1763457823061,0.00090788,91160.0,91159.0,0.04655]
[1763457823662,0.00190788,91160.0,91159.0,0.04655]
[1763457824067,0.00090788,91160.0,91159.0,0.04655]
[1763457824371,0.00190788,91160.0,91159.0,0.04655]
[1763457825773,0.02498788,91160.0,91159.0,0.04655]
[1763457826071,0.06025788,91160.0,91159.0,0.04655]
[1763457826374,0.06125788,91160.0,91159.0,0.04655]
[1763457826668,0.04572,91153.0,91152.0,0.0297945]
[1763457826976,0.04572,91153.0,91152.0,0.00016453]
[1763457827177,0.04572,91153.0,91152.0,0.04671453]
[1763457828168,0.04572,91153.0,91152.0,0.00016453]
[1763457829563,0.04572,91153.0,91152.0,0.02349453]
[1763457829770,0.04572,91153.0,91152.0,0.04671453]
[1763457831973,0.03931802,91155.0,91154.0,0.04655]
[1763457832283,0.00362,91163.0,91152.0,0.01303453]
[1763457832284,0.03931802,91156.0,91155.0,0.04655]
[1763457832577,0.03931802,91157.0,91156.0,0.04655]
[1763457832776,0.03931802,91158.0,91157.0,0.04655]
[1763457832975,0.04572,91158.0,91157.0,0.04655]
[1763457833878,0.06331086,91160.0,91159.0,0.04655]
[1763457834077,0.08595086,91160.0,91159.0,0.04655]
[1763457834273,0.06025788,91160.0,91159.0,0.02333]
[1763457834475,0.04572,91153.0,91152.0,0.04671453]
[1763457836473,0.04572,91153.0,91152.0,0.00016453]
[1763457837384,0.04573,91138.0,91137.0,0.04636763]
[1763457837682,0.04573,91138.0,91137.0,0.00012763]
[1763457838584,0.04573,91138.0,91137.0,0.04675763]
[1763457838585,0.02308,91138.0,91137.0,0.04675763]
[1763457838884,0.04494788,91140.0,91139.0,0.04563]
[1763457839388,0.10392325,91140.0,91139.0,0.02272]
[1763457839681,0.04404,91138.0,91137.0,0.00112763]
[1763457839981,0.04304,91138.0,91137.0,0.00012763]
[1763457840286,0.04304,91138.0,91137.0,0.04575763]
[1763457840885,0.02039,91138.0,91137.0,0.04575763]
[1763457841084,0.05988325,91140.0,91139.0,0.04563]
[1763457841085,0.00090788,91140.0,91139.0,0.04563]
[1763457841473,0.02229788,91140.0,91139.0,0.04563]
[1763457841981,0.00090788,91140.0,91139.0,0.04563]
[1763457842386,0.00090788,91140.0,91139.0,0.04663]
[1763457843879,0.02229788,91140.0,91139.0,0.04663]
[1763457844079,0.04494788,91140.0,91139.0,0.04663]
[1763457844485,0.04494788,91140.0,91139.0,0.001]
[1763457844684,0.04404,91127.0,91126.0,0.00027435]
[1763457845596,0.04414559,91127.0,91126.0,0.00027435]
[1763457846084,0.04414559,91127.0,91126.0,0.00127435]
[1763457847382,0.04414559,91127.0,91126.0,0.02399435]
[1763457847686,0.04414559,91127.0,91126.0,0.00127435]
[1763457847882,0.04414559,91127.0,91126.0,0.00027435]
[1763457848484,0.04414559,91127.0,91126.0,0.02299435]
[1763457848681,0.04414559,91127.0,91126.0,0.04590435]
[1763457851592,0.02149559,91127.0,91126.0,0.04590435]
[1763457851998,0.04414559,91127.0,91126.0,0.04590435]
[1763457854090,0.02149559,91127.0,91126.0,0.04590435]
[1763457854285,0.04414559,91127.0,91126.0,0.04590435]
[1763457856092,3.47e-06,91130.0,91129.0,0.04563]
[1763457856283,0.04420453,91147.0,91146.0,0.04563]
[1763457858093,0.04520453,91147.0,91146.0,0.04563]
[1763457863084,0.00116453,91147.0,91146.0,0.04563]
[1763457863889,4.53e-06,91148.0,91146.0,0.04563]
[1763457864090,4.53e-06,91148.0,91147.0,0.04487]
[1763457865201,0.00100453,91148.0,91147.0,0.04487]
[1763457865596,4.53e-06,91148.0,91141.0,0.02962997]
[1763457865795,0.00100453,91148.0,91147.0,0.04487]
[1763457866900,0.00100453,91148.0,91147.0,0.05296]
[1763457867198,4.53e-06,91148.0,91147.0,0.00809]
[1763457878508,0.04381453,91148.0,91147.0,0.04398]
[1763457878711,0.04381453,91148.0,91138.0,0.04414453]
[1763457878712,0.04381,91139.0,91138.0,0.04414453]
[1763457879316,0.04381,91139.0,91138.0,0.02191453]
[1763457879613,0.04381,91139.0,91138.0,0.00016453]
[1763457880007,0.04381,91139.0,91138.0,0.02191453]
[1763457880807,0.04381,91139.0,91138.0,0.04414453]
[1763457883126,0.04381,91139.0,91138.0,0.02191453]
[1763457883327,0.04381,91139.0,91138.0,0.04414453]
[1763457885725,0.04381,91139.0,91138.0,0.02191453]
[1763457885921,0.0831149,91139.0,91138.0,0.00016453]
[1763457886521,0.04381,91127.0,91126.0,0.02202435]
[1763457886727,0.04381,91127.0,91126.0,0.00027435]
[1763457887027,0.04381,91127.0,91126.0,0.02202435]
[1763457887226,0.04381,91127.0,91126.0,0.04425435]
[1763457887721,0.03930698,91132.0,91131.0,0.04398]
[1763457887930,0.03930698,91133.0,91132.0,0.04398]
[1763457888121,0.03930698,91135.0,91134.0,0.04398]
[1763457888317,0.08311698,91135.0,91134.0,0.02175]
[1763457888632,0.04381,91127.0,91126.0,0.00027435]
[1763457889323,0.05565254,91127.0,91126.0,0.00027435]
[1763457889622,0.04381,91109.0,91108.0,0.04398]
[1763457891032,0.01347,91112.0,91110.0,0.02394803]
[1763457891033,0.04381,91111.0,91110.0,0.02394803]
[1763457891824,0.04381,91111.0,91110.0,0.04617803]
[1763457892030,0.04381,91111.0,91098.0,0.00681]
[1763457892031,0.0228,91099.0,91098.0,0.04398]
[1763457892228,0.04381,91099.0,91098.0,0.04398]
[1763457892539,0.21898077,91108.0,91107.0,0.04398]
[1763457892721,0.04381,91108.0,91107.0,0.04398]
[1763457893646,0.03929228,91117.0,91107.0,0.04398]
[1763457893929,0.08310228,91117.0,91116.0,0.04398]
[1763457894132,0.04381,91117.0,91116.0,0.02175]
[1763457894839,0.04381,91117.0,91116.0,0.04398]
[1763457895330,0.04481,91117.0,91116.0,0.02175]
[1763457895634,0.04631139,91117.0,91116.0,0.02175]
[1763457895836,0.04631139,91117.0,91116.0,0.04398]
[1763457896826,0.04731139,91117.0,91116.0,0.04398]
[1763457900532,0.04731139,91117.0,91116.0,0.02175]
[1763457900934,0.045,91106.0,91105.0,0.04904]
[1763457901832,0.04650139,91106.0,91105.0,0.04904]
[1763457903128,0.04650139,91106.0,91105.0,0.04223]
[1763457905536,0.00150139,91106.0,91105.0,0.05524]
[1763457906434,0.02449139,91106.0,91105.0,0.05524]
[1763457907339,0.04650139,91106.0,91105.0,0.05524]
[1763457907641,0.02449139,91106.0,91105.0,0.05524]
[1763457907845,0.045,91096.0,91095.0,0.02952598]
[1763457908036,0.045,91092.0,91091.0,0.04223]
[1763457908740,0.04650139,91092.0,91091.0,0.04223]
[1763457910236,0.045,91091.0,91090.0,0.00219803]
[1763457910835,0.05847,91088.0,91086.0,0.02980045]
[1763457911043,0.045,91087.0,91086.0,0.00027447]
[1763457912044,0.04650139,91087.0,91086.0,0.00027447]